bitfinex/quotes_SOLUSD_20250908
["timestamp","ask_amount","ask_price","bid_price","bid_amount"]
[1757348447274,21.88010971,214.03,213.99,36.61]
[1757348447658,18.26787037,214.03,213.99,37.29]
[1757348447957,18.26787037,214.03,214.0,0.71]
[1757348448153,18.26787037,214.03,214.0,0.03]
[1757348448674,33.56071523,214.03,214.0,0.03]
[1757348448971,16.49783335,214.01,214.0,0.03]
[1757348449267,16.49783335,214.01,214.0,36.61]
[1757348449573,17.20783335,214.01,214.0,36.61]
[1757348450475,21.88051219,214.01,214.0,36.61]
[1757348451452,13.59559401,214.01,214.0,36.61]
[1757348451957,13.59559401,214.01,214.0,37.29]
[1757348452656,13.59559401,214.01,214.0,36.61]
[1757348453758,18.26827285,214.01,214.0,36.61]
[1757348454074,13.59559401,214.01,214.0,37.29]
[1757348454549,13.59559401,214.01,214.0,36.61]
[1757348455446,18.26827285,214.01,214.0,36.61]
[1757348455852,13.59559401,214.01,214.0,36.61]
[1757348456265,18.26827285,214.01,214.0,36.61]
[1757348458462,18.97827285,214.01,214.0,36.61]
[1757348459071,18.26827285,214.01,214.0,36.61]
[1757348461590,13.59559401,214.01,214.0,36.61]
[1757348462464,18.26827285,214.01,214.0,36.61]
[1757348467209,18.26827285,214.01,214.0,36.61]
[1757348468183,13.59559401,214.01,214.0,36.61]
[1757348468800,4.73227346,214.03,214.0,41.96289719]
[1757348468801,0.06,214.03,214.0,41.96289719]
[1757348468998,0.06,214.06,214.03,26.0]
[1757348469186,0.06,214.06,214.04,36.58]
[1757348469385,0.06,214.06,214.05,0.68]
[1757348469582,1e-08,214.13,214.07,26.0]
[1757348469887,0.2,214.16,214.14,26.0]
[1757348470083,0.06,214.17,214.15,36.58]
[1757348470503,0.06,214.17,214.16,0.68]
[1757348471313,0.06,214.17,214.16,2.54667289]
[1757348471886,0.06,214.17,214.16,7.21607894]
[1757348473018,0.06,214.17,214.16,1.86667289]
[1757348473308,0.06,214.17,214.16,36.58]
[1757348476813,0.06,214.17,214.13,26.68]
[1757348477003,0.06,214.17,214.16,26.0]
[1757348477313,0.06,214.17,214.16,62.56]
[1757348478288,0.06,214.17,214.13,26.0]
[1757348478491,0.69,214.16,214.14,36.56]
[1757348478703,0.06,214.17,214.14,36.56]
[1757348480912,0.06,214.17,214.13,26.0]
[1757348481114,0.06,214.17,214.14,36.56]
[1757348482201,0.06,214.17,214.14,37.27]
[1757348482410,0.06,214.17,214.13,26.0]
[1757348482721,0.69,214.16,214.14,36.56]
[1757348483094,0.06,214.17,214.14,36.56]
[1757348483287,0.75,214.17,214.14,36.56]
[1757348483806,5.41940483,214.17,214.14,36.56]
[1757348485013,4.72940483,214.17,214.14,36.56]
[1757348485901,5.41940483,214.17,214.14,36.56]
[1757348486391,4.72940483,214.17,214.14,36.56]
[1757348486592,0.06,214.17,214.14,37.27]
[1757348486805,0.06,214.17,214.15,0.71]
[1757348487008,0.06,214.17,214.16,36.56]
[1757348494516,0.06,214.17,214.16,37.27]
[1757348494722,0.06,214.17,214.16,41.93940605]
[1757348494914,0.06,214.17,214.16,43.80590473]
[1757348496706,0.06,214.19,214.18,26.0]
[1757348497023,0.06,214.19,214.18,82.54]
[1757348497204,0.06,214.19,214.18,83.25]
[1757348498231,0.06,214.2,214.18,83.25]
[1757348498411,0.06,214.2,214.19,0.71]
[1757348499627,0.06,214.2,214.19,41.91875204]
[1757348499817,0.06,214.2,214.19,4.66875204]
[1757348500018,0.06,214.2,214.19,41.20875204]
[1757348501919,0.06,214.2,214.19,67.20875204]
[1757348502322,0.06,214.2,214.19,41.20875204]
[1757348502712,0.06,214.2,214.19,173.90875204]
[1757348505411,0.75,214.2,214.19,26.0]
[1757348505627,0.75,214.2,214.19,62.52]
[1757348505841,0.06,214.2,214.19,62.52]
[1757348506253,0.06,214.2,214.19,67.18875204]
[1757348506728,0.06,214.2,214.19,62.52]
[1757348507218,0.06,214.2,214.18,30.66896068]
[1757348507535,0.06,214.2,214.19,36.52]
[1757348507832,0.74,214.2,214.19,36.52]
[1757348508939,13.59559401,214.19,214.14,0.03]
[1757348509244,13.59559401,214.17,214.15,36.52]
[1757348509543,0.68,214.16,214.15,36.52]
[1757348509743,0.68,214.16,214.15,62.52]
[1757348510339,0.68,214.19,214.15,62.52]
[1757348510544,0.06,214.2,214.15,63.24]
[1757348510729,0.74,214.2,214.15,63.24]
[1757348511548,0.74,214.2,214.19,26.0]
[1757348511726,0.06,214.2,214.19,62.52]
[1757348512233,0.06,214.2,214.19,63.24]
[1757348513143,0.06,214.2,214.19,63.80025024]
[1757348513324,1e-08,214.2,214.19,63.80025024]
[1757348513523,1e-08,214.2,214.19,68.46900228]
[1757348517446,1e-08,214.2,214.19,221.16900228]
[1757348517639,1e-08,214.2,214.19,220.60875204]
[1757348518045,1e-08,214.22,214.2,132.7]
[1757348518225,0.06,214.23,214.2,132.7]
[1757348518226,0.06,214.24,214.22,20.0]
[1757348518428,0.06,214.24,214.23,37.08014563]
[1757348518633,0.06,214.24,214.23,42.46802594]
[1757348518923,0.06,214.24,214.23,41.18788031]
[1757348519524,0.06,214.24,214.23,41.90788031]
[1757348519825,0.06,214.24,214.23,43.77359546]
[1757348520745,0.06,214.24,214.23,7.25359546]
[1757348520946,0.06,214.24,214.23,43.77359546]
[1757348521279,0.06,214.24,214.23,6.53359546]
[1757348521753,0.74,214.24,214.23,1.86571515]
[1757348522054,0.06,214.24,214.23,38.38571515]
[1757348522255,0.06,214.24,214.23,36.52]
[1757348523027,0.06,214.24,214.23,70.1]
[1757348524348,0.06,214.24,214.23,74.76788031]
[1757348524860,0.06,214.24,214.23,76.04802594]
[1757348525456,0.06,214.24,214.23,228.74802594]
[1757348525637,0.06,214.24,214.23,228.18788031]
[1757348526958,0.06,214.25,214.23,228.18788031]
[1757348527155,0.06,214.27,214.26,26.0]
[1757348527361,0.06,214.27,214.26,62.5]
[1757348527554,0.06,214.27,214.26,63.22]
[1757348529058,0.06,214.27,214.26,63.7800672]
[1757348529549,0.06,214.27,214.26,196.4800672]
[1757348529759,0.06,214.27,214.26,195.92]
[1757348530648,0.68,214.35,214.26,237.45653341]
[1757348531056,0.68,214.35,214.26,176.90039975]
[1757348531357,0.2,214.39,214.26,176.90039975]
[1757348531358,0.68,214.34,214.3,26.0]
[1757348531663,13.79559401,214.39,214.34,26.0]
[1757348531956,13.79559401,214.39,214.35,36.5]
[1757348532261,13.59559401,214.37,214.35,36.5]
[1757348532448,0.68,214.36,214.34,26.0]
[1757348532753,13.59559401,214.38,214.35,36.52]
[1757348533163,13.59559401,214.36,214.35,36.52]
[1757348533457,14.27559401,214.36,214.35,36.52]
[1757348534166,18.94064345,214.36,214.35,36.52]
[1757348534753,14.27559401,214.36,214.35,36.52]
[1757348535660,18.9407616,214.36,214.3,26.0]
[1757348535950,13.59559401,214.34,214.33,26.0]
[1757348536153,4.66516759,214.36,214.33,62.52]
[1757348536359,0.69,214.34,214.33,26.0]
[1757348536550,0.69,214.34,214.33,62.52]
[1757348538465,0.69,214.34,214.27,26.0]
[1757348538653,13.59559401,214.32,214.31,26.0]
[1757348538845,14.28559401,214.32,214.31,62.5]
[1757348540063,14.28559401,214.32,214.31,36.5]
[1757348540262,14.28559401,214.32,214.23,33.61]
[1757348540463,13.59559401,214.3,214.24,36.52]
[1757348540645,0.69,214.29,214.27,26.0]
[1757348540849,14.28559401,214.29,214.28,36.52]
[1757348541156,14.28559401,214.28,214.23,33.61]
[1757348541450,13.59559401,214.26,214.24,36.5]
[1757348541651,0.69,214.25,214.24,36.5]
[1757348543057,0.69,214.25,214.23,59.61]
[1757348543259,13.59559401,214.25,214.23,59.61]
[1757348543438,13.59559401,214.24,214.23,33.61]
[1757348543646,13.59559401,214.24,214.2,0.03]
[1757348543951,14.28559401,214.24,214.21,36.52]
[1757348544255,13.59559401,214.22,214.21,36.52]
[1757348544459,18.95369222,214.22,214.21,36.52]
[1757348544662,14.28559401,214.22,214.21,36.52]
[1757348545443,14.5618361,214.27,214.21,36.52]
[1757348545444,13.59559401,214.23,214.21,36.52]
[1757348545673,14.28559401,214.22,214.21,36.52]
[1757348547856,13.59559401,214.21,214.2,0.03]
[1757348548167,5.35809821,214.22,214.2,36.53]
[1757348548370,0.69,214.21,214.2,36.53]
[1757348548562,5.35831613,214.21,214.2,0.03]
[1757348548875,5.35831613,214.21,214.2,36.55]
[1757348548876,8.25245679,214.21,214.2,36.55]
[1757348550143,5.35831613,214.21,214.2,36.55]
[1757348552873,0.69,214.21,214.2,36.55]
[1757348553372,80.75439268,214.44,214.2,36.55]
[1757348553373,16.48973467,214.27,214.2,0.03]
[1757348553563,14.28559401,214.21,214.2,0.03]
[1757348553971,14.28559401,214.21,214.2,36.55]
[1757348556182,18.95391014,214.21,214.2,36.55]
[1757348556375,14.28559401,214.21,214.2,36.55]
[1757348556693,13.59559401,214.21,214.2,36.55]
[1757348557064,18.95391014,214.21,214.2,36.55]
[1757348560081,13.59559401,214.21,214.2,36.55]
[1757348561676,13.59559401,214.21,214.2,37.27]
[1757348562277,13.59559401,214.21,214.2,36.55]
[1757348564180,13.59559401,214.24,214.2,36.55]
[1757348564361,18.95329367,214.24,214.2,36.55]
[1757348566089,18.26329367,214.24,214.2,36.55]
[1757348566275,18.91329367,214.24,214.2,36.55]
[1757348569880,13.59559401,214.22,214.2,36.55]
[1757348571302,13.59559401,214.22,214.2,0.03]
[1757348571473,13.59559401,214.21,214.2,0.03]
[1757348571674,13.59559401,214.21,214.2,36.55]
[1757348572076,2.89414066,214.27,214.2,174.59853134]
[1757348572077,13.59559401,214.26,214.2,174.59853134]
[1757348572271,13.59559401,214.26,214.21,0.68]
[1757348572493,13.59559401,214.26,214.22,37.2]
[1757348572790,13.59559401,214.27,214.22,37.2]
[1757348573089,13.59559401,214.27,214.23,0.68]
[1757348573295,13.59559401,214.27,214.24,36.52]
[1757348575384,13.65559401,214.27,214.24,36.52]
[1757348575588,18.97265026,214.27,214.24,36.52]
[1757348575882,0.65,214.26,214.25,36.5]
[1757348576092,0.65,214.26,214.2,0.03]
[1757348576093,13.59559401,214.24,214.23,26.0]
[1757348576315,13.59559401,214.24,214.23,62.5]
[1757348576794,13.59559401,214.26,214.23,62.5]
[1757348577593,14.24559401,214.26,214.23,62.5]
[1757348577792,18.91284062,214.26,214.23,62.5]
[1757348578819,18.26284062,214.26,214.23,62.5]
[1757348579397,18.91284062,214.26,214.23,62.5]
[1757348580322,0.06,214.27,214.23,62.5]
[1757348580633,13.59559401,214.26,214.23,62.5]
[1757348580799,13.59559401,214.26,214.24,0.68]
[1757348581111,0.06,214.27,214.25,36.5]
[1757348581919,0.06,214.27,214.26,0.68]
[1757348582214,0.06,214.27,214.26,138.60729393]
[1757348582411,0.06,214.27,214.26,151.64282074]
[1757348592524,0.06,214.27,214.26,188.12282074]
[1757348594217,0.06,214.3,214.29,26.0]
[1757348594412,0.06,214.3,214.29,62.48]
[1757348594619,0.06,214.3,214.29,63.16]
[1757348595419,0.06,214.3,214.29,65.02501923]
[1757348595620,0.06,214.3,214.29,69.01159256]
[1757348595921,0.06,214.3,214.29,69.68159256]
[1757348596918,0.06,214.3,214.29,70.24158136]
[1757348597324,0.06,214.32,214.29,81.90801469]
[1757348597635,0.06,214.32,214.31,4.66613783]
[1757348597842,0.06,214.32,214.31,41.14613783]
[1757348598044,0.06,214.32,214.31,42.37607437]
[1757348599111,0.06,214.32,214.31,44.2409197]
[1757348599703,0.06,214.32,214.31,7.0909197]
[1757348599909,0.06,214.32,214.31,43.01098316]
[1757348600129,0.06,214.32,214.31,43.68098316]
[1757348600332,0.06,214.32,214.31,6.53098316]
[1757348600516,0.06,214.32,214.31,43.01098316]
[1757348600828,0.06,214.32,214.31,43.68098316]
[1757348601227,0.06,214.32,214.31,43.01098316]
[1757348602932,0.06,214.32,214.31,6.53098316]
[1757348603123,0.06,214.32,214.31,43.01098316]
[1757348603619,0.06,214.34,214.33,4.66570242]
[1757348603817,0.06,214.34,214.33,41.14570242]
[1757348604334,0.75,214.34,214.33,41.14570242]
[1757348604509,0.75,214.34,214.33,1.86493228]
[1757348604714,0.75,214.34,214.33,38.34493228]
[1757348605133,14.34559401,214.34,214.33,1.86493228]
[1757348605314,13.59559401,214.33,214.24,4.66760281]
[1757348605514,14.28559401,214.33,214.3,4.86447067]
[1757348605708,0.69,214.32,214.3,4.86447067]
[1757348605914,0.69,214.31,214.2,0.7]
[1757348606110,0.69,214.31,214.21,36.48]
[1757348606370,0.69,214.3,214.21,13.65559401]
[1757348606650,16.38919659,214.34,214.21,13.65559401]
[1757348606651,14.28559401,214.29,214.21,13.65559401]
[1757348606846,0.69,214.28,214.21,13.65559401]
[1757348607056,13.59559401,214.26,214.21,13.65559401]
[1757348607257,0.69,214.25,214.22,36.46]
[1757348607754,0.69,214.24,214.22,36.46]
[1757348607920,0.69,214.23,214.22,36.46]
[1757348608126,18.2624487,214.28,214.25,26.0]
[1757348608324,18.2624487,214.28,214.26,36.48]
[1757348608741,27.90649095,214.34,214.26,36.48]
[1757348608742,11.72382744,214.34,214.26,36.48]
[1757348608943,0.69,214.28,214.26,36.48]
[1757348609144,0.69,214.27,214.26,36.48]
[1757348610844,25.25985006,214.33,214.29,26.0]
[1757348611043,13.59559401,214.31,214.3,36.48]
[1757348611546,14.28559401,214.31,214.3,36.48]
[1757348611941,18.95173184,214.31,214.3,36.48]
[1757348612845,18.95173184,214.31,214.3,62.48]
[1757348616241,5.41574956,214.33,214.3,62.48]
[1757348616547,14.28559401,214.32,214.3,62.48]
[1757348616930,0.69,214.32,214.3,62.48]
[1757348617353,0.69,214.32,214.3,74.20327133]
[1757348617558,0.69,214.31,214.3,74.20327133]
[1757348617733,0.69,214.31,214.3,62.48]
[1757348618039,0.69,214.31,214.3,67.20574956]
[1757348618440,0.06,214.33,214.3,67.87574956]
[1757348618638,0.06,214.33,214.31,0.67]
[1757348618832,0.06,214.33,214.32,36.48]
[1757348619648,0.06,214.33,214.32,37.15]
[1757348619847,0.06,214.33,214.32,39.01528015]
[1757348620246,0.06,214.33,214.32,43.68120026]
[1757348621437,0.06,214.33,214.32,38.34528015]
[1757348621632,0.06,214.33,214.32,64.32528015]
[1757348622743,0.06,214.33,214.32,197.63528015]
[1757348623342,0.06,214.33,214.32,196.96528015]
[1757348624049,0.06,214.33,214.32,160.50528015]
[1757348624247,0.06,214.33,214.32,196.96528015]
[1757348624651,0.06,214.33,214.32,202.30120026]
[1757348625157,0.06,214.33,214.32,197.63528015]
[1757348625353,0.06,214.33,214.32,196.96528015]
[1757348625762,0.06,214.33,214.32,197.65528015]
[1757348626067,0.06,214.33,214.32,202.32120026]
[1757348626247,0.06,214.33,214.32,165.86120026]
[1757348626571,0.06,214.33,214.32,202.32120026]
[1757348626949,0.06,214.33,214.32,165.86120026]
[1757348627154,0.06,214.33,214.32,196.96528015]
[1757348627352,0.06,214.33,214.32,160.50528015]
[1757348627662,0.06,214.33,214.32,196.96528015]
[1757348627860,0.06,214.33,214.32,160.50528015]
[1757348628055,0.77,214.33,214.32,27.86528015]
[1757348628257,0.77,214.33,214.32,1.86528015]
[1757348628765,0.77,214.33,214.32,38.32528015]
[1757348629753,0.06,214.33,214.32,38.32528015]
[1757348630264,0.06,214.33,214.32,42.99120026]
[1757348630449,0.06,214.33,214.32,43.02120026]
[1757348633272,0.06,214.33,214.32,175.66120026]
[1757348634653,0.06,214.33,214.32,134.53528015]
[1757348634855,0.06,214.33,214.32,170.99528015]
[1757348635168,0.06,214.33,214.32,175.66120026]
[1757348635972,0.06,214.33,214.32,209.22120026]
[1757348638797,0.06,214.33,214.32,209.91120026]
[1757348639077,0.06,214.33,214.32,209.22120026]
[1757348639276,0.06,214.33,214.32,76.58120026]
[1757348640256,0.06,214.33,214.32,77.27120026]
[1757348640462,0.06,214.33,214.32,76.58120026]
[1757348640985,0.06,214.33,214.32,71.91528015]
[1757348641286,0.06,214.33,214.32,76.58120026]
[1757348641485,0.06,214.33,214.32,77.27120026]
[1757348641664,0.06,214.33,214.32,76.58120026]
[1757348642061,0.06,214.33,214.32,40.12120026]
[1757348642281,0.77,214.33,214.32,35.45528015]
[1757348642460,0.06,214.33,214.32,76.56120026]
[1757348648181,0.06,214.33,214.32,77.25120026]
[1757348648386,0.06,214.33,214.32,76.56120026]
[1757348649786,0.06,214.33,214.32,209.95120026]
[1757348653167,0.06,214.34,214.32,209.95120026]
[1757348653367,0.06,214.37,214.35,26.0]
[1757348653582,0.06,214.37,214.36,36.44]
[1757348653787,0.77,214.37,214.36,36.44]
[1757348654598,0.77,214.37,214.36,3.69469924]
[1757348654764,0.77,214.37,214.35,132.7]
[1757348654964,0.06,214.37,214.36,41.10377873]
[1757348655576,0.78,214.37,214.36,41.10377873]
[1757348657064,0.78,214.37,214.36,4.66377873]
[1757348657265,0.78,214.37,214.36,41.10377873]
[1757348659291,0.06,214.37,214.36,41.10377873]
[1757348659469,0.78,214.37,214.36,41.10377873]
[1757348659869,0.06,214.37,214.36,41.10377873]
[1757348660166,0.06,214.37,214.36,74.66377873]
[1757348660474,0.78,214.37,214.36,74.66377873]
[1757348660867,0.78,214.37,214.36,79.32882817]
[1757348661165,0.78,214.37,214.36,74.66377873]
[1757348662589,0.78,214.37,214.36,74.64377873]
[1757348664574,0.06,214.37,214.36,74.64377873]
[1757348665206,0.78,214.37,214.36,74.64377873]
[1757348665701,0.06,214.37,214.36,79.30882817]
[1757348665873,0.06,214.37,214.36,212.00882817]
[1757348669688,0.78,214.37,214.36,207.34377873]
[1757348670396,0.06,214.37,214.36,207.34377873]
[1757348670582,0.78,214.37,214.36,207.34377873]
[1757348671088,0.78,214.37,214.36,170.92377873]
[1757348671273,0.78,214.37,214.36,207.34377873]
[1757348671911,0.78,214.37,214.36,38.22377873]
[1757348672089,0.78,214.37,214.36,74.64377873]
[1757348672273,0.78,214.37,214.36,38.22377873]
[1757348672601,5.44483183,214.37,214.36,69.98]
[1757348675984,19.04042584,214.37,214.36,69.98]
[1757348677186,14.37559401,214.37,214.36,69.98]
[1757348678520,0.06,214.37,214.36,69.98]
[1757348679204,0.06,214.37,214.36,76.51015563]
[1757348679886,0.06,214.37,214.36,71.84510619]
[1757348681508,0.06,214.37,214.36,76.51015563]
[1757348681806,0.06,214.37,214.36,71.84510619]
[1757348683289,0.06,214.37,214.36,76.51015563]
[1757348683800,0.06,214.37,214.36,209.21015563]
[1757348685410,0.06,214.37,214.36,209.88015563]
[1757348685592,0.06,214.37,214.36,77.18015563]
[1757348686712,0.06,214.37,214.36,76.51015563]
[1757348687412,0.06,214.37,214.36,77.16015563]
[1757348689006,0.06,214.37,214.36,76.51015563]
[1757348689932,0.06,214.37,214.36,40.09015563]
[1757348690221,0.06,214.37,214.36,76.49015563]
[1757348691426,0.06,214.37,214.36,40.09015563]
[1757348691622,0.06,214.37,214.36,76.47015563]
[1757348692625,0.06,214.37,214.36,209.17015563]
[1757348692823,0.06,214.37,214.36,168.12510619]
[1757348693014,0.73,214.37,214.36,71.80510619]
[1757348693205,0.73,214.37,214.36,76.47015563]
[1757348693397,0.73,214.37,214.36,71.80510619]
[1757348697196,0.73,214.37,214.36,35.42510619]
[1757348697396,0.73,214.37,214.36,71.80510619]
[1757348698499,0.73,214.37,214.36,204.50510619]
[1757348699501,0.06,214.37,214.36,204.50510619]
[1757348699702,0.06,214.37,214.36,168.12510619]
[1757348699903,0.06,214.37,214.36,204.50510619]
[1757348700303,0.2,214.39,214.36,204.50510619]
[1757348700304,0.2,214.39,214.38,26.0]
[1757348700617,0.2,214.39,214.38,62.38]
[1757348701220,0.2,214.39,214.38,64.24484533]
[1757348702106,0.2,214.39,214.38,68.90945956]
[1757348702316,0.2,214.39,214.38,69.55945956]
[1757348702702,0.2,214.39,214.38,68.90945956]
[1757348703318,0.2,214.39,214.38,69.55945956]
[1757348703532,0.2,214.39,214.38,1.86484533]
[1757348703722,0.87,214.39,214.38,27.86484533]
[1757348703936,0.87,214.39,214.38,64.24484533]
[1757348704230,0.2,214.39,214.38,64.24484533]
[1757348704429,0.2,214.39,214.38,68.90945956]
[1757348704730,0.2,214.39,214.38,32.52945956]
[1757348704921,0.2,214.39,214.38,64.22484533]
[1757348704922,0.87,214.39,214.38,64.22484533]
[1757348705227,0.2,214.39,214.38,68.88945956]
[1757348705522,0.2,214.39,214.38,69.53945956]
[1757348706114,0.2,214.39,214.38,27.86484533]
[1757348706318,0.2,214.39,214.38,68.88945956]
[1757348707717,0.2,214.39,214.38,69.53945956]
[1757348708232,0.2,214.39,214.38,32.52945956]
[1757348708410,0.2,214.39,214.38,68.88945956]
[1757348708730,0.2,214.39,214.38,27.86484533]
[1757348709115,0.2,214.39,214.38,64.22484533]
[1757348709429,0.2,214.39,214.38,38.22484533]
[1757348710228,0.2,214.39,214.38,42.88945956]
[1757348710724,0.2,214.39,214.38,43.53945956]
[1757348713327,0.2,214.39,214.38,176.23945956]
[1757348718107,0.2,214.39,214.38,176.21945956]
[1757348718712,1e-08,214.39,214.38,180.51558918]
[1757348719116,0.06,214.42,214.4,132.63999999]
[1757348719318,0.06,214.42,214.41,36.34]
[1757348719529,0.06,214.42,214.41,37.04]
[1757348720035,0.06,214.42,214.41,38.90415007]
[1757348720334,0.06,214.42,214.41,64.90415007]
[1757348720544,0.76,214.42,214.41,64.20415007]
[1757348720838,0.06,214.42,214.41,64.20415007]
[1757348721017,0.06,214.42,214.41,68.86811163]
[1757348721528,0.06,214.42,214.41,69.56811163]
[1757348722636,0.06,214.42,214.41,74.27868832]
[1757348723539,1e-08,214.42,214.41,74.8383637]
[1757348723840,1e-08,214.44,214.43,26.0]
[1757348724023,1e-08,214.44,214.43,195.53962317]
[1757348724226,1e-08,214.44,214.43,199.97612961]
[1757348724533,1e-08,214.44,214.43,213.57172362]
[1757348724836,0.7,214.53,214.46,26.0]
[1757348725043,0.7,214.53,214.5,26.0]
[1757348725336,0.7,214.53,214.52,4.66157001]
[1757348725546,0.7,214.53,214.52,67.00157001]
[1757348725748,0.7,214.55,214.52,67.00157001]
[1757348726054,0.7,214.55,214.52,78.65549505]
[1757348726225,0.7,214.57,214.52,78.65549505]
[1757348726418,0.7,214.57,214.52,43.01549505]
[1757348726646,13.59559401,214.66,214.56,26.0]
[1757348726849,13.59559401,214.66,214.6,26.0]
[1757348727030,4.51548651,214.64,214.57,33.54]
[1757348727228,13.59559401,214.6,214.59,26.0]
[1757348727543,14.29559401,214.6,214.58,13.59559401]
[1757348727762,13.59559401,214.58,214.57,33.54]
[1757348727925,13.59559401,214.58,214.57,83.47559401]
[1757348727926,14.29559401,214.58,214.57,83.47559401]
[1757348728527,0.7,214.58,214.57,83.47559401]
[1757348729747,0.7,214.58,214.57,83.45559401]
[1757348731421,0.7,214.58,214.57,216.09559399]
[1757348731642,13.59559401,214.66,214.6,26.0]
[1757348731839,13.59559401,214.66,214.61,36.32]
[1757348732055,11.64632442,214.66,214.61,36.32]
[1757348732348,0.7,214.65,214.61,36.32]
[1757348732846,13.59559401,214.63,214.61,36.32]
[1757348733056,0.7,214.62,214.61,36.32]
[1757348734240,18.25406293,214.67,214.64,26.0]
[1757348734443,18.25406293,214.67,214.65,36.32]
[1757348734632,29.89984482,214.67,214.66,36.32]
[1757348734837,30.59984482,214.67,214.66,36.32]
[1757348736335,2.43076656,214.72,214.69,26.0]
[1757348736540,11.64213154,214.74,214.7,36.32]
[1757348736727,13.59559401,214.73,214.71,36.32]
[1757348736930,0.7,214.72,214.71,36.32]
[1757348737246,13.59559401,214.71,214.7,13.96875655]
[1757348737427,0.7,214.71,214.7,50.26875655]
[1757348737634,5.35744492,214.71,214.7,50.26875655]
[1757348738329,0.7,214.71,214.7,50.26875655]
[1757348739529,23.26126231,214.95,214.7,13.96875655]
[1757348739530,0.06,214.72,214.7,13.96875655]
[1757348739755,0.7,214.71,214.7,13.96875655]
[1757348739935,0.7,214.71,214.7,50.26875655]
[1757348740248,0.7,214.71,214.7,13.96875655]
[1757348740551,0.06,214.72,214.7,50.26875655]
[1757348741364,0.7,214.71,214.7,13.96875655]
[1757348741532,0.7,214.71,214.7,50.26875655]
[1757348741738,0.06,214.72,214.7,50.26875655]
[1757348742257,0.06,214.72,214.7,182.90875653]
[1757348742761,0.76,214.72,214.7,182.90875653]
[1757348743535,4.71728694,214.72,214.7,146.60875653]
[1757348743739,0.7,214.71,214.7,146.60875653]
[1757348743953,14.29559401,214.71,214.7,50.26875655]
[1757348744759,14.29559401,214.71,214.7,36.3]
[1757348744937,14.29559401,214.71,214.7,40.95681298]
[1757348745137,13.59559401,214.71,214.7,40.95681298]
[1757348745351,14.29559401,214.71,214.7,4.65681298]
[1757348745855,18.95303893,214.71,214.7,40.95681298]
[1757348746061,18.95303893,214.71,214.7,4.65681298]
[1757348746249,13.59559401,214.7,214.64,33.52]
[1757348746448,4.51548651,214.68,214.65,36.3]
[1757348746636,14.31559401,214.67,214.65,36.3]
[1757348746837,13.59559401,214.65,214.64,59.52]
[1757348747154,14.31559401,214.65,214.64,33.52]
[1757348747547,14.31559401,214.65,214.64,69.82]
[1757348747858,18.9743408,214.65,214.64,69.82]
[1757348750042,0.72,214.68,214.64,69.82]
[1757348750254,13.59559401,214.66,214.64,33.52]
[1757348750461,0.72,214.65,214.64,33.52]
[1757348750763,5.23548651,214.65,214.64,33.52]
[1757348750949,0.72,214.65,214.64,69.88]
[1757348751149,5.23548651,214.65,214.64,69.88]
[1757348751470,0.72,214.65,214.64,69.88]
[1757348751667,5.37874679,214.65,214.64,69.88]
[1757348752165,13.59559401,214.65,214.64,69.88]